Cogmind - Beta 17 @@@ ROGUE MODE // 2026.07.03 @ 21:47:38 Player: Storm Mk9 Result: Destroyed by G-50 Soldier with Heavy Laser Performance ------------- Evolutions (4) 2000 Regions Visited (17) 3400 Robots Destroyed (193) 965 Value Destroyed (6702) 6702 Prototype IDs (43) 860 Alien Tech Used (0) 0 Bonus (1363) 1363 TOTAL SCORE: 15290 Bonus ------- High Alert Combat Kills 120 Follower Combat Kills 353 Entered Garrisons 200 Aligned with FarCom 300 Met Data Miner 300 Acquired ECA 300 Friendly Fire -210 Cogmind --------- Core Integrity 0/850 Matter 170/300 Energy 100/100 System Corruption 38% Temperature Cool (9) Movement Rolling (80) Location -6/Factory Parts ------- > --- POWER (2) -------- (None) > --- PROPULSION (3) --- Flexi-carbon Leg Wheel > --- UTILITY (7) ------ Advanced Heat Sink > --- WEAPON (3) ------- Magnetic Acceleration Cannon > --- INVENTORY (5) ---- Light Nuclear Core Neutrino Core High-capacity Matter Pod (200) Encrypted Comm Array Skeleton Box Peak State ------------ > --- POWER ------------ Heavy Deuterium Engine > --- PROPULSION ------- Armored Treads Armored Treads Medium Treads > --- UTILITY ---------- Improved Cooling System High-capacity Storage Unit Hardened Heavy Armor Plating Thermal Shield Dynamic Insulation System > --- WEAPON ----------- Enhanced Autogun Greatsword > --- INVENTORY -------- Improved Deuterium Engine Reinforced Deuterium Engine Huge Storage Unit High-capacity Matter Pod Encrypted Comm Array Hardened Heavy Armor Plating Hardened Heavy Armor Plating Medium Reactive Plating Improved Shield Generator Skeleton Box Advanced Beam Rifle Advanced Beam Rifle Minigun Minigun Gauss Rifle Precision Assault Rifle Rocket Launcher Plasma Cutter [Rating: 56] Favorites ----------- Power Improved Deuterium Engine Engine Improved Deuterium Engine Power Core Neutrino Core Propulsion Armored Treads Treads Armored Treads Leg Carbon-fiber Leg Wheel Wheel Utility High-capacity Storage Unit Device Dynamic Insulation System Storage High-capacity Storage Unit Processor Targeting Computer Protection Hardened Heavy Armor Plating Weapon Minigun Energy Gun Advanced Beam Rifle Energy Cannon Beam Cannon Ballistic Gun Minigun Ballistic Cannon Light Cannon Launcher Heavy Missile Launcher Slashing Weapon Makeshift Sword Build | -11 -10 -10 -9 -9 -9 -8 -8 -7 -7 -7 -7 -7 -7 -6 -6 -6 -6 ------- Run | Yrd Mat Min Mat Min Exi Min Mat Fac Gar Fac Low Low Dat Pro Fac Was Fac Slots Evolved 8 | . . . 2 . . . 2 2 . . . . . . 2 . . Power 1 | . . . . . . . . . . . . . . . 1 . . Propulsion 1 | . . . . . . . 1 . . . . . . . . . . Utility 5 | . . . 2 . . . 1 1 . . . . . . 1 . . Weapon 1 | . . . . . . . . 1 . . . . . . . . . Parts Attached 129 | 7 8 2 18 4 1 3 21 13 3 3 12 4 1 8 2 7 12 Power 13 | 1 1 . 3 . . . 2 1 . 1 1 . . 1 1 . 1 Engine 12 | 1 1 . 3 . . . 2 1 . 1 1 . . 1 . . 1 Core 1 | . . . . . . . . . . . . . . . 1 . . Reactor . | . . . . . . . . . . . . . . . . . . Propulsion 33 | 2 1 1 2 2 . 2 7 1 2 1 2 2 . . . 1 7 Treads 23 | 2 1 1 2 2 . 2 6 1 2 1 2 . . . . . 1 Leg 9 | . . . . . . . 1 . . . . 2 . . . 1 5 Wheel 1 | . . . . . . . . . . . . . . . . . 1 Hover . | . . . . . . . . . . . . . . . . . . Flight . | . . . . . . . . . . . . . . . . . . Utility 45 | 2 2 1 8 . 1 1 5 7 1 1 5 . 1 4 1 4 1 Device 22 | 1 . 1 3 . . 1 2 5 1 1 1 . . 1 1 3 1 Storage 6 | 1 2 . 2 . . . . . . . . . . 1 . . . Processor 3 | . . . 1 . . . 1 . . . . . . 1 . . . Hackware . | . . . . . . . . . . . . . . . . . . Protection 14 | . . . 2 . 1 . 2 2 . . 4 . 1 1 . 1 . Artifact . | . . . . . . . . . . . . . . . . . . Weapon 38 | 2 4 . 5 2 . . 7 4 . . 4 2 . 3 . 2 3 Energy Gun 10 | . 1 . 3 1 . . 3 1 . . 1 . . . . . . Energy Cannon 1 | . 1 . . . . . . . . . . . . . . . . Ballistic Gun 14 | 2 1 . . 1 . . 2 3 . . 2 1 . 1 . . 1 Ballistic Cannon 6 | . 1 . 1 . . . . . . . . . . . . 2 2 Launcher 5 | . . . 1 . . . 1 . . . 1 1 . 1 . . . Special Weapon . | . . . . . . . . . . . . . . . . . . Impact Weapon . | . . . . . . . . . . . . . . . . . . Slashing Weapon 2 | . . . . . . . 1 . . . . . . 1 . . . Piercing Weapon . | . . . . . . . . . . . . . . . . . . Special Melee Weapon . | . . . . . . . . . . . . . . . . . . Unidentified Prototypes 9 | . . . 1 . . . 3 2 . 1 . . . . . 2 . Corrupted Parts 3 | . . . . . . . . . . . . . . . . 3 . System Corruption 19 | . . . . . . . . . . . . . . . . 19 . Parts Lost 69 | . 3 2 4 3 . 4 5 2 4 1 9 4 . 15 . 7 6 Power 8 | . 1 . 1 . . . 1 1 . . 1 . . 2 . 1 . Propulsion 24 | . 1 1 2 1 . 2 2 . 2 1 3 2 . 2 . 1 4 Utility 18 | . . 1 . . . 1 2 1 2 . 4 1 . 4 . 2 . Weapon 19 | . 1 . 1 2 . 1 . . . . 1 1 . 7 . 3 2 Highest Loss Streak 6 | . 2 1 1 2 . 2 2 1 2 1 3 3 . 6 . 4 3 To Critical Strikes 2 | . . . . . . . . . . . 1 . . . . . 1 Average Backups 14 | 2 7 13 17 18 18 17 16 17 16 16 15 11 13 8 9 6 4 Power 1 | . 1 1 1 2 2 2 2 1 1 2 1 2 2 1 1 1 1 Propulsion 1 | . 2 2 1 2 2 1 1 3 1 . . . . . . . . Utility 4 | . 2 4 8 11 10 9 4 3 5 5 4 2 3 1 2 2 1 Weapon 4 | . 2 5 5 2 2 2 5 6 6 6 5 4 5 1 2 1 . Tool/Special . | . . . . . . . . . . . . . . . . . . Unused Backups 24 | . 2 . 7 . 1 . 6 3 . . . . . . . 1 4 Power 6 | . 1 . 1 . . . 2 . . . . . . . . . 2 Propulsion 4 | . . . 1 . . . 2 1 . . . . . . . . . Utility 4 | . 1 . 1 . 1 . 1 . . . . . . . . . . Weapon 6 | . . . 4 . . . 1 1 . . . . . . . . . Tool/Special 4 | . . . . . . . . 1 . . . . . . . 1 2 Average Slot Usage (%) 80 | . 100 99 99 99 100 99 96 97 88 92 88 68 76 37 31 33 19 Engine 7 | . 14 14 10 11 11 11 9 7 7 7 7 7 7 3 . . . Treads 16 | . 28 28 22 21 22 22 23 23 22 23 21 2 . . . . 1 Device 12 | . 14 13 14 11 11 11 15 13 17 23 19 7 3 6 8 7 3 Storage 8 | . 14 14 11 11 11 11 9 7 7 7 7 7 7 7 6 4 . Processor 4 | . . . 10 11 11 11 8 7 1 . . . . 3 6 2 . Protection 9 | . . . 7 11 11 11 10 13 7 7 10 15 18 4 6 8 . Energy Gun 5 | . 4 . 6 11 11 11 8 8 7 7 5 1 . 2 . . . Ballistic Gun 10 | . 16 14 4 6 11 10 8 13 15 15 12 21 23 2 . . 2 Ballistic Cannon 1 | . 2 14 10 4 . . . . . . . . . . . 2 4 Peak Build Rating 56 | 7 8 9 18 17 17 17 38 51 54 55 56 48 46 46 27 56 25 Average Rating 31 | 5 7 8 14 16 16 16 30 44 50 54 53 40 45 18 19 32 14 On Entrance 26 | . 7 8 9 17 17 17 16 38 51 49 55 48 45 46 15 27 9 Avg Prop Armor Cover (%) 6 | . . . . . . . 4 . . . . . . . . . 11 Naked Turns 58 | . . . . . . . . . . . . . . . . 35 23 Heaviest Build 136 | 14 30 30 62 60 58 58 71 83 83 84 109 107 120 120 59 136 18 Greatest Support 76 | 40 40 40 40 40 40 40 60 68 68 68 76 51 35 35 3 28 50 Greatest Overweight (x) 35 | . . . 1 1 1 1 1 1 1 1 2 35 3 27 19 19 5 Average Overweight (x) 2 | . . . . 1 1 1 1 1 1 1 1 7 3 16 15 2 . Largest Inventory Capacity 25 | 8 15 15 25 20 20 20 20 20 20 20 20 20 20 20 20 25 5 Average Capacity 19 | 7 10 15 19 20 20 20 20 20 20 20 20 20 20 20 20 16 5 Most Carried 20 | 4 12 15 20 20 20 20 20 20 20 20 20 17 16 15 14 16 5 Average Carried 15 | 2 8 13 17 19 19 19 19 19 19 19 17 13 15 10 11 8 4 Final Capacity 20 | 8 15 15 20 20 20 20 20 20 20 20 20 20 20 20 20 5 5 Final Carried 20 | 3 12 15 20 20 20 17 20 20 20 20 13 16 15 11 12 4 5 Class Distribution -------------------- 41% | Mutant 35% | Tank 9% | Scavenger-Mutant 7% | Skirmisher 3% | Derelict-Mutant Dominant Class ---------------- Mutant | -10/Materials Mutant | -10/Mines Mutant | -9/Materials Mutant | -9/Mines Scavenger-Mutant | -9/Exiles Scavenger-Mutant | -8/Mines Mutant | -8/Materials Tank | -7/Factory Skirmisher | -7/Garrison Tank | -7/Factory Tank | -7/Lower Caves Tank | -7/Lower Caves Tank | -7/Data Miner Mutant | -6/Proximity Caves Mutant | -6/Factory Mutant | -6/Waste Mutant | -6/Factory Resources | -11 -10 -10 -9 -9 -9 -8 -8 -7 -7 -7 -7 -7 -7 -6 -6 -6 -6 ----------- Run | Yrd Mat Min Mat Min Exi Min Mat Fac Gar Fac Low Low Dat Pro Fac Was Fac Matter Collected 5829 | 310 477 83 484 58 . 52 669 246 671 141 919 384 . 435 . 471 429 Remotely . | . . . . . . . . . . . . . . . . . . Salvage Created 7778 | 120 637 28 1041 54 . 161 1594 354 742 297 1105 205 . 408 . 808 224 Parts 365 | 5 35 4 60 9 . 2 78 20 36 14 64 11 . 15 . . 12 Haulers Intercepted 8 | . 1 . 3 . . . 4 . . . . . . . . . . Recyclers Shooed 4 | . . . 1 . . . . . . . . . . . . . 3 Parts Field Recycled . | . . . . . . . . . . . . . . . . . . Retrieved Matter . | . . . . . . . . . . . . . . . . . . Parts Self-Destructed 91 | . . . . . . . . . . . 67 11 . 13 . . . Prevented . | . . . . . . . . . . . . . . . . . . Parts Restored . | . . . . . . . . . . . . . . . . . . Kills | -11 -10 -10 -9 -9 -9 -8 -8 -7 -7 -7 -7 -7 -7 -6 -6 -6 -6 ------- Run | Yrd Mat Min Mat Min Exi Min Mat Fac Gar Fac Low Low Dat Pro Fac Was Fac Combat Hostiles Destroyed 166 | . 14 4 24 6 . 3 27 8 18 7 29 5 . 10 . 4 7 Melee 6 | . . . . . . . 4 . . . 2 . . . . . . Guns 113 | . 8 . 12 4 . 2 23 8 18 7 19 5 . 7 . . . Cannons 31 | . 6 4 10 2 . . . . . . . . . . . 2 7 AOE 14 | . . . 2 . . . . . . . 8 . . 3 . 1 . Classes Destroyed 19 | 2 4 1 4 . . 1 2 1 . . 2 . . 1 . 1 . Worker 4 | . . . 1 . . . 3 . . . . . . . . . . Builder 4 | . . . 1 . . . . 1 . 1 . . . . . . 1 Tunneler 1 | 1 . . . . . . . . . . . . . . . . . Hauler 8 | . 1 . 3 . . . 4 . . . . . . . . . . Recycler 2 | 1 . . 1 . . . . . . . . . . . . . . Operator 1 | . . . . . . . 1 . . . . . . . . . . Drone 1 | . . . . . . . . . . . . . . 1 . . . Watcher 6 | . 3 . 1 . . . 2 . . . . . . . . . . Swarmer 57 | . 2 3 6 6 . . 4 1 11 3 13 3 . 3 . . 2 Grunt 68 | . 12 . 13 . . 2 16 2 6 2 8 . . 3 . . 4 Brawler 3 | . . . . . . . 1 . 1 . . . . . . . 1 Duelist 3 | . . . 1 . . . . . 2 . . . . . . . . Sentry 12 | . . . 4 . . . 5 . . . 3 . . . . . . Specialist 3 | . . . . . . . . . . . 3 . . . . . . Hunter 7 | . . . . . . 1 1 1 . . 1 1 . 2 . . . Programmer 7 | . . . . . . . . 4 . 2 . . . 1 . . . Behemoth 2 | . . . . . . . . . . . 1 1 . . . . . Compactor 4 | . . . . . . . . . . . . . . . . 4 . Assembled 1 | . . 1 . . . . . . . . . . . . . . . Best Kill Streak 12 | 1 3 2 7 6 . 1 5 4 4 4 12 3 . 3 . 2 3 Combat Bots Only 12 | . 3 2 4 6 . 1 5 3 4 3 12 3 . 3 . 2 3 Max Kills in Single Turn 2 | 1 1 1 2 1 . 1 2 2 2 2 2 2 . 1 . 1 1 Gunslinging 1 | . . . . . . . . . 1 . 1 1 . . . . . Exploded 2 | . . . 2 . . . . . . . 2 . . 1 . 1 . Melee 1 | . . . . . . . 1 . . . 1 . . . . . . Uniques/NPCs Destroyed . | . . . . . . . . . . . . . . . . . . Combat | -11 -10 -10 -9 -9 -9 -8 -8 -7 -7 -7 -7 -7 -7 -6 -6 -6 -6 -------- Run | Yrd Mat Min Mat Min Exi Min Mat Fac Gar Fac Low Low Dat Pro Fac Was Fac Hostile Shots Fired 1134 | . 122 15 89 29 . 51 126 52 60 34 231 70 . 138 . 25 92 Missed 304 | . 36 2 20 5 . 15 26 11 15 11 74 20 . 37 . . 32 Hits 830 | . 86 13 69 24 . 36 100 41 45 23 157 50 . 101 . 25 60 Melee 58 | . . . 5 . . . 5 . 21 . 2 . . . . 25 . Projectile 772 | . 86 13 64 24 . 36 95 41 24 23 155 50 . 101 . . 60 AOE 3 | . . . . . . . . . . . . . . . . . 3 Critical Strikes 43 | . 1 . 1 1 . 2 10 1 3 1 7 . . 3 . 11 2 Actively Blocked 1 | . . . . . . . . . . . . . . . . 1 . Part Disruptions 5 | . . . . . . . . . . 1 3 . . . . . 1 Actively Blocked 4 | . . . . . . . . . . 1 3 . . . . . . Damage Taken 14566 | . 1055 194 945 186 . 610 1640 553 1105 339 2496 941 . 1528 . 1529 1445 Core 2119 | . 206 28 136 7 . 72 290 11 17 . 172 80 . 241 . 304 555 Absorbed by Shields . | . . . . . . . . . . . . . . . . . . Redirected to Shielding 131 | . . . . . . . . . . . 99 . . . . 32 . Ignored by Resistances 794 | . . . . . . . . 50 12 3 204 264 . 261 . . . Core Remaining (%) 44 | 100 . 6 . . . 46 47 . . . . . . 25 . . . Volleys Fired 637 | 10 89 11 70 11 . 31 85 23 62 18 69 18 . 61 . 32 47 Largest 3 | 2 2 2 2 2 . 2 2 3 3 3 3 3 . 3 . 2 3 Hottest 147 | 40 80 50 86 86 . 76 86 147 111 111 117 117 . 78 . 88 107 Shots Fired 1350 | 20 176 24 134 20 . 62 171 72 186 56 186 55 . 90 . 37 61 Gun 1127 | 20 141 11 64 12 . 62 171 72 186 56 179 55 . 81 . . 17 Cannon 194 | . 35 13 67 8 . . . . . . . . . . . 27 44 Launcher 29 | . . . 3 . . . . . . . 7 . . 9 . 10 . Special . | . . . . . . . . . . . . . . . . . . Kinetic 895 | 20 126 24 85 9 . 31 85 47 124 38 117 46 . 55 . 27 61 Thermal 426 | . 50 . 46 11 . 31 86 25 62 18 62 9 . 26 . . . Explosive 26 | . . . . . . . . . . . 7 . . 9 . 10 . Electromagnetic 3 | . . . 3 . . . . . . . . . . . . . . Robot Hit Streak 26 | 5 12 14 20 6 . 18 24 26 25 7 16 13 . 5 . 7 9 Robot Miss Streak 7 | 2 5 3 3 1 . 3 3 1 5 2 5 3 . 6 . 4 7 Penetration Max . | . . . . . . . . . . . . . . . . . . Secondary Targets 17 | . 1 . . . . . . 1 7 . 5 2 . 1 . . . Max Gunslinging Chain 1 | . 1 . . . . . . 1 1 . 1 1 . 1 . . . Shots Hit Robots 886 | 14 116 12 88 13 . 46 149 50 94 31 131 33 . 36 . 33 40 Core Hits 374 | 4 38 6 44 7 . 11 60 19 40 13 60 12 . 21 . 24 15 Critical Kills 2 | . . . . . . . 2 . . . . . . . . . . Critical Parts Destroyed 2 | . . . . . . . . . 1 . 1 . . . . . . Critical Strikes 46 | . . . 7 1 . 4 15 1 4 2 8 . . 1 . 1 2 Burn 30 | . . . 6 1 . 4 8 1 3 2 4 . . 1 . . . Destroy 4 | . . . . . . . 2 . 1 . 1 . . . . . . Blast 4 | . . . 1 . . . . . . . . . . . . 1 2 Sever 8 | . . . . . . . 5 . . . 3 . . . . . . Melee Attacks 37 | . . . . . . . 18 . . . 19 . . . . . . Impact . | . . . . . . . . . . . . . . . . . . Slashing 37 | . . . . . . . 18 . . . 19 . . . . . . Piercing . | . . . . . . . . . . . . . . . . . . Sneak Attacks 2 | . . . . . . . 1 . . . 1 . . . . . . Combat Hostiles 1 | . . . . . . . . . . . 1 . . . . . . Follow-up Attacks . | . . . . . . . . . . . . . . . . . . Damage Inflicted 19449 | 139 1312 199 1587 227 . 522 3230 1075 1995 633 3759 625 . 987 . 1990 1169 Guns 12201 | 139 855 55 624 132 . 522 2332 1065 1995 633 2485 625 . 570 . . 169 Cannons 3275 | . 457 144 755 95 . . . . . . . . . . . 824 1000 Explosions 2727 | . . . 208 . . . . . . . 950 . . 417 . 1152 . Melee 1222 | . . . . . . . 898 . . . 324 . . . . . . Ramming 24 | . . . . . . . . 10 . . . . . . . 14 . Kinetic 10198 | 139 877 199 842 104 . 176 1034 607 1263 398 1599 541 . 426 . 824 1169 Thermal 5309 | . 435 . 568 123 . 346 1298 458 732 235 886 84 . 144 . . . Explosive 2519 | . . . . . . . . . . . 950 . . 417 . 1152 . Electromagnetic 177 | . . . 177 . . . . . . . . . . . . . . Impact . | . . . . . . . . . . . . . . . . . . Slashing 1222 | . . . . . . . 898 . . . 324 . . . . . . Piercing . | . . . . . . . . . . . . . . . . . . Highest Corruption 38 | . 2 2 . . . . 5 4 3 4 6 3 3 3 . 37 38 Average Corruption 4 | . 2 2 . . . . 4 1 3 3 3 3 3 3 . 18 37 Corruption Purged 12 | . . . . . . . . 4 . . 3 . . . . 5 . Corruption Blocked . | . . . . . . . . . . . . . . . . . . Effects 391 | . . 13 . . . . 39 29 36 18 63 62 4 79 . 11 37 Message Errors 105 | . . 2 . . . . 11 5 9 6 19 18 1 26 . 5 3 Matter Fused 84 | . . 1 . . . . 10 4 9 2 15 19 . 17 . . 7 Heat Flow Errors 42 | . . 1 . . . . 5 5 4 3 6 7 . 5 . 2 4 Energy Discharges 36 | . . 2 . . . . 5 4 7 2 1 7 . 7 . . 1 Parts Rejected 5 | . . . . . . . 1 . . . 1 . . . . 1 2 Parts Fused 4 | . . . . . . . . 1 . . . 2 . 1 . . . Data Loss (minor) 54 | . . 4 . . . . 6 2 4 2 9 7 2 11 . 2 5 Data Loss (major) 17 | . . . . . . . . 2 . 1 8 1 . 5 . . . Misfires 18 | . . 2 . . . . 1 4 1 2 2 1 . 4 . . 1 Alerts 9 | . . 1 . . . . . 1 1 . 1 . 1 3 . . 1 Misdirections 3 | . . . . . . . . . . . . . . . . . 3 Weapon Failures 14 | . . . . . . . . 1 1 . 1 . . . . 1 10 Overload Shots . | . . . . . . . . . . . . . . . . . . Overflow Damage 110 | . . . 2 2 . . 49 . . . 17 . . 39 . . 1 Projectiles 5 | . . . 2 2 . . . . . . . . . . . . 1 Explosions 56 | . . . . . . . . . . . 17 . . 39 . . . Melee 49 | . . . . . . . 49 . . . . . . . . . . Knockbacks 24 | . 1 . 13 2 . . . . . . . . . . . . 8 Impact . | . . . . . . . . . . . . . . . . . . Kinetic 22 | . 1 . 12 1 . . . . . . . . . . . . 8 Secondary 2 | . . . 1 1 . . . . . . . . . . . . . Self-Inflicted Damage 472 | . . . 8 . . . . . . . 48 . . 20 . 396 . Shots 12 | . . . 1 . . . . . . . 2 . . 1 . 8 . Rammed 5 | . . . . . . . . 1 . . . . . . . 4 . Targets Rammed 5 | . . . . . . . . 1 . . . . . . . 4 . Kicked . | . . . . . . . . . . . . . . . . . . Crushed . | . . . . . . . . . . . . . . . . . . Highest Temperature 420 | . 419 198 14 . . 15 372 264 237 205 420 391 . 279 . 133 237 Average Temperature 96 | . 89 41 4 . . 9 100 100 33 40 124 142 . 92 . 34 60 Received Heat Transfer 3213 | . 576 9 300 . . 216 720 90 54 9 480 144 . 210 . . 405 Effects 20 | . 2 . . . . . 5 1 . . 2 4 . 5 . . 1 Shutdowns 1 | . . . . . . . 1 . . . . . . . . . . Energy Bleed 6 | . 1 . . . . . . . . . 1 1 . 2 . . 1 Interference 9 | . 1 . . . . . 2 1 . . . 2 . 3 . . . Matter Decay 2 | . . . . . . . 1 . . . 1 . . . . . . Short Circuit 1 | . . . . . . . . . . . . 1 . . . . . Damage (minor) 1 | . . . . . . . 1 . . . . . . . . . . Siege Activations . | . . . . . . . . . . . . . . . . . . Martial Activations . | . . . . . . . . . . . . . . . . . . Shielding Activations . | . . . . . . . . . . . . . . . . . . Robots Disrupted . | . . . . . . . . . . . . . . . . . . Combat Hostiles . | . . . . . . . . . . . . . . . . . . Robots Corrupted . | . . . . . . . . . . . . . . . . . . Combat Hostiles . | . . . . . . . . . . . . . . . . . . Parts Fried 1 | . . . 1 . . . . . . . . . . . . . . Impact Corruptions . | . . . . . . . . . . . . . . . . . . Robots Melted 1 | . . . . . . 1 . . . . . . . . . . . Combat Hostiles 1 | . . . . . . 1 . . . . . . . . . . . Parts Melted 28 | . 2 . 6 . . 2 9 1 5 2 . . . 1 . . . Heat Transferred 12942 | . 941 . 1826 370 . 1184 3441 814 1517 518 1850 148 . 333 . . . Parts Sabotaged . | . . . . . . . . . . . . . . . . . . Parts Stolen . | . . . . . . . . . . . . . . . . . . Parts Stripped . | . . . . . . . . . . . . . . . . . . Power Chain Reactions 1 | . . . 1 . . . . . . . . . . . . . . Alert | -11 -10 -10 -9 -9 -9 -8 -8 -7 -7 -7 -7 -7 -7 -6 -6 -6 -6 ------- Run | Yrd Mat Min Mat Min Exi Min Mat Fac Gar Fac Low Low Dat Pro Fac Was Fac Maximum Alert Level 4 | . . . 1 1 . . 1 . 4 2 . . . . 3 1 . Low Security (%) 79 | 100 100 100 90 99 . 100 88 100 27 . . . . . . 71 100 Level 1 7 | . . . 9 . . . 11 . 23 16 . . . . . 28 . Level 2 7 | . . . . . . . . . 23 83 . . . . . . . Level 3 5 | . . . . . . . . . 21 . . . . . 100 . . Level 4 . | . . . . . . . . . 3 . . . . . . . . Level 5 . | . . . . . . . . . . . . . . . . . . High Security . | . . . . . . . . . . . . . . . . . . Max Security . | . . . . . . . . . . . . . . . . . . Peak Influence 1133 | 5 107 58 331 207 . 47 292 126 1133 594 . . . . 900 245 142 Initial 900 | . . 20 . 127 . . . 126 56 594 . . . . 900 245 10 Average 149 | . 40 6 97 24 . 6 118 25 465 457 . . . . 801 145 65 Influence Increases 6462 | 10 421 136 788 193 . 95 775 373 1197 186 700 130 . 227 900 30 301 Destroy 0b10 Robot/C 3460 | . 280 100 480 160 . 60 540 160 540 140 580 100 . 180 . . 140 Destroy 0b10 Robot/NC 140 | 10 20 . 35 . . . 50 5 . 5 . . . 10 . . 5 Destroy Leader 608 | . 68 20 128 30 . 20 132 50 40 40 30 30 . 20 . . . Allied During Kill 98 | . . 10 . 3 . . . . 68 . . . . 17 . . . Trap Triggered on 0b10 40 | . . . 30 . . . 10 . . . . . . . . . . Successful Hack 192 | . 8 6 14 . . . 8 128 14 . . . . . . . 14 Select Force Hacks 30 | . . . 30 . . . . . . . . . . . . . . Disable Machine 45 | . . . 15 . . . . . 15 . . . . . . . 15 Anti-Garrison Action 500 | . . . . . . . . . 500 . . . . . . . . Destroy Structure 74 | . . . 11 . . . 5 . 20 1 . . . . . 30 7 Advance Influence 900 | . . . . . . . . . . . . . . . 900 . . Lose Combat Pursuer 375 | . 45 . 45 . . 15 30 30 . . 90 . . . . . 120 Influence Decreases 6423 | 10 368 189 459 522 . 95 498 570 144 971 766 412 . 227 198 717 277 Entered New Map 1596 | . . 33 . 202 . . . 151 24 539 130 55 . . . 457 5 Time Decay 4097 | 10 338 116 424 290 . 85 448 366 . 422 546 317 . 155 198 170 212 Lost Part 547 | . 30 . 35 30 . 10 50 10 40 10 90 40 . 72 . 70 60 Lost Ally 140 | . . 40 . . . . . . 80 . . . . . . 20 . Purge Threat 43 | . . . . . . . . 43 . . . . . . . . . Squads Dispatched 21 | . 4 . 3 . . . 3 5 . 3 . . . . 1 . 2 Investigation 9 | . 2 . 1 . . . 3 1 . 1 . . . . . . 1 Extermination 7 | . . . . . . . . 4 . 2 . . . . 1 . . Reinforcement 5 | . 2 . 2 . . . . . . . . . . . . . 1 Assault . | . . . . . . . . . . . . . . . . . . Garrison . | . . . . . . . . . . . . . . . . . . Intercept . | . . . . . . . . . . . . . . . . . . Searches Triggered . | . . . . . . . . . . . . . . . . . . Data Miner Redirects 1 | . . . . . . . . . . . . . . . . . 1 Construction Impeded 1 | . . . . . . . . . . . . . . . . . 1 Haulers Reinforced . | . . . . . . . . . . . . . . . . . . Active Scanning Responses . | . . . . . . . . . . . . . . . . . . Cargo Convoy Interrupts 1 | . . . . . . . . . . 1 . . . . . . . Stealth | -11 -10 -10 -9 -9 -9 -8 -8 -7 -7 -7 -7 -7 -7 -6 -6 -6 -6 --------- Run | Yrd Mat Min Mat Min Exi Min Mat Fac Gar Fac Low Low Dat Pro Fac Was Fac Distress Signals 12 | . 2 . 4 . . . 3 1 . . . . . 1 . . 1 Communications Jammed . | . . . . . . . . . . . . . . . . . . Distress Signals . | . . . . . . . . . . . . . . . . . . Times Spotted 270 | . 30 8 36 10 . 7 37 14 27 8 36 5 . 22 . 6 24 Peak Tracking Total 10 | . 5 3 4 3 . 3 6 4 5 3 10 3 . 4 . 2 7 Tactical Retreats 17 | . 2 1 2 . . 1 2 1 . . 6 . . . . . 2 Traps | -11 -10 -10 -9 -9 -9 -8 -8 -7 -7 -7 -7 -7 -7 -6 -6 -6 -6 ------- Run | Yrd Mat Min Mat Min Exi Min Mat Fac Gar Fac Low Low Dat Pro Fac Was Fac Traps Triggered 18 | . 3 . 1 . . . 1 1 8 1 . . . . 1 . 2 Indirectly . | . . . . . . . . . . . . . . . . . . Trap Hack Attempts . | . . . . . . . . . . . . . . . . . . Triggered . | . . . . . . . . . . . . . . . . . . Disarmed . | . . . . . . . . . . . . . . . . . . Reprogrammed 11 | . . . 11 . . . . . . . . . . . . . . Reused 5 | . . . 3 . . . 1 . . . . . . . . 1 . Traps Extracted . | . . . . . . . . . . . . . . . . . . Installed 4 | . . . . 1 . . 1 1 . . . . . . . 1 . Triggered 4 | . . . 3 . . . 1 . . . . . . . . . . Most Traps Carried 2 | . . . . 2 2 2 2 1 . . . 2 2 2 2 2 . Machines | -11 -10 -10 -9 -9 -9 -8 -8 -7 -7 -7 -7 -7 -7 -6 -6 -6 -6 ---------- Run | Yrd Mat Min Mat Min Exi Min Mat Fac Gar Fac Low Low Dat Pro Fac Was Fac Machines Disabled 8 | . . . 1 . . . . . 2 . 4 . . . . . 1 Max in Single Turn 1 | . . . 1 . . . . . 1 . 1 . . . . . 1 Garrison Relay 1 | . . . . . . . . . 1 . . . . . . . . Machines Repaired . | . . . . . . . . . . . . . . . . . . Machines Dismantled . | . . . . . . . . . . . . . . . . . . Machines Sabotaged . | . . . . . . . . . . . . . . . . . . Overloaded Fab Kills . | . . . . . . . . . . . . . . . . . . Hacking | -11 -10 -10 -9 -9 -9 -8 -8 -7 -7 -7 -7 -7 -7 -6 -6 -6 -6 --------- Run | Yrd Mat Min Mat Min Exi Min Mat Fac Gar Fac Low Low Dat Pro Fac Was Fac Machines Accessed 50 | . 3 1 9 . 1 . 6 14 2 3 3 1 4 1 . . 2 Terminals 28 | . 3 1 7 . . . 5 5 2 2 1 1 . 1 . . . Fabricators 4 | . . . . . . . . 2 . 1 . . . . . . 1 Repair Stations 1 | . . . . . . . . 1 . . . . . . . . . Recycling Units 6 | . . . 2 . . . . 3 . . . . . . . . 1 Scanalyzers 1 | . . . . . . . 1 . . . . . . . . . . Garrison Access 3 | . . . . . . . . 3 . . . . . . . . . Total Hacks 152 | . 9 7 25 . 1 . 13 42 4 7 9 1 28 1 . . 5 Successful 86 | . 2 2 14 . 1 . 4 21 1 . 9 1 28 1 . . 2 Failed 65 | . 7 5 10 . . . 9 21 3 7 . . . . . . 3 Catastrophic 8 | . . . . . . . 2 2 1 2 . . . . . . 1 Database Lockouts 1 | . . . 1 . . . . . . . . . . . . . . Manual 72 | . 9 8 18 . 1 . 8 20 . 4 1 . . . . . 3 Terminals 86 | . 9 7 20 . . . 11 22 4 4 7 1 . 1 . . . Fabricators 8 | . . . . . . . . 2 . 3 . . . . . . 3 Repair Stations 2 | . . . . . . . . 2 . . . . . . . . . Recycling Units 15 | . . . 5 . . . . 8 . . . . . . . . 2 Scanalyzers 2 | . . . . . . . 2 . . . . . . . . . . Garrison Access 8 | . . . . . . . . 8 . . . . . . . . . Terminal Hacks 59 | . . 2 7 . 1 . 1 8 1 . 9 1 28 1 . . . Record 20 | . . . . . . . . . . . 7 1 11 1 . . . Part Schematic 10 | . . . . . . . . . . . . . 10 . . . . Robot Schematic 4 | . . . . . . . . . . . . . 4 . . . . Robot Analysis 5 | . . 2 1 . . . . 2 . . . . . . . . . Prototype ID Bank 5 | . . . . . . . . 2 . . . . 3 . . . . Open Door 2 | . . . . . . . . . . . 2 . . . . . . Branch Access Points 2 | . . . 1 . . . . 1 . . . . . . . . . Emergency Access Points 1 | . . . . . . . . 1 . . . . . . . . . Terminal Index 1 | . . . 1 . . . . . . . . . . . . . . Unreport Threat 1 | . . . . . . . . 1 . . . . . . . . . Locate Traps 4 | . . . 2 . . . 1 1 . . . . . . . . . Reprogram Traps 2 | . . . 2 . . . . . . . . . . . . . . Patrol Navigation 1 | . . . . . . . . . 1 . . . . . . . . Proto ID Catalog 1 | . . . . . 1 . . . . . . . . . . . . Fabricator Hacks . | . . . . . . . . . . . . . . . . . . Repair Station Hacks . | . . . . . . . . . . . . . . . . . . Recycling Unit Hacks 6 | . . . 2 . . . . 3 . . . . . . . . 1 Report Inventory 6 | . . . 2 . . . . 3 . . . . . . . . 1 Scanalyzer 2 | . . . . . . . 2 . . . . . . . . . . Retrieve Study 2 | . . . . . . . 2 . . . . . . . . . . Garrison Access Hacks 1 | . . . . . . . . 1 . . . . . . . . . Unlock Access 1 | . . . . . . . . 1 . . . . . . . . . Unauthorized Hacks 17 | . 2 . 4 . . . 1 9 . . . . . . . . 1 Terminals 12 | . 2 . 3 . . . 1 6 . . . . . . . . . Track 1 | . . . 1 . . . . . . . . . . . . . . Botnet 5 | . . . 1 . . . 1 3 . . . . . . . . . Operators 2 | . . . 1 . . . . 1 . . . . . . . . . Skim 4 | . 2 . . . . . . 2 . . . . . . . . . Fabricators 2 | . . . . . . . . 1 . . . . . . . . 1 Liberate 2 | . . . . . . . . 1 . . . . . . . . 1 Repair Stations . | . . . . . . . . . . . . . . . . . . Recycling Units 3 | . . . 1 . . . . 2 . . . . . . . . . Monitor 1 | . . . . . . . . 1 . . . . . . . . . Recyclers 1 | . . . . . . . . 1 . . . . . . . . . Tunnel 1 | . . . 1 . . . . . . . . . . . . . . Scanalyzers . | . . . . . . . . . . . . . . . . . . Garrison Access . | . . . . . . . . . . . . . . . . . . Data Cores Recovered . | . . . . . . . . . . . . . . . . . . Used . | . . . . . . . . . . . . . . . . . . Hacking Detections 37 | . 3 1 8 . . . 5 12 2 3 1 . . . . . 2 Full Trace Events 6 | . . . . . . . 2 1 1 1 . . . . . . 1 Feedback Events . | . . . . . . . . . . . . . . . . . . Feedback Blocked . | . . . . . . . . . . . . . . . . . . Robot Schematics Acquired 4 | . . . . . . . . . . . . . 4 . . . . Robots Built . | . . . . . . . . . . . . . . . . . . Authchips . | . . . . . . . . . . . . . . . . . . Time . | . . . . . . . . . . . . . . . . . . Total Robot Build Rating . | . . . . . . . . . . . . . . . . . . Part Schematics Acquired 10 | . . . . . . . . . . . . . 10 . . . . Parts Built . | . . . . . . . . . . . . . . . . . . Authchips . | . . . . . . . . . . . . . . . . . . Time . | . . . . . . . . . . . . . . . . . . Total Part Build Rating . | . . . . . . . . . . . . . . . . . . Part Studies Acquired 1 | . . . . . . . 1 . . . . . . . . . . Parts Repaired . | . . . . . . . . . . . . . . . . . . Time . | . . . . . . . . . . . . . . . . . . Parts Recycled . | . . . . . . . . . . . . . . . . . . Recycled Matter . | . . . . . . . . . . . . . . . . . . Retrieved Matter . | . . . . . . . . . . . . . . . . . . Retrieved Components . | . . . . . . . . . . . . . . . . . . Parts Scanalyzed . | . . . . . . . . . . . . . . . . . . Part Schematics Acquired . | . . . . . . . . . . . . . . . . . . Parts Damaged . | . . . . . . . . . . . . . . . . . . Bothacking | -11 -10 -10 -9 -9 -9 -8 -8 -7 -7 -7 -7 -7 -7 -6 -6 -6 -6 ------------ Run | Yrd Mat Min Mat Min Exi Min Mat Fac Gar Fac Low Low Dat Pro Fac Was Fac Used RIF Installer . | . . . . . . . . . . . . . . . . . . Robots Hacked . | . . . . . . . . . . . . . . . . . . Non-combat . | . . . . . . . . . . . . . . . . . . Combat . | . . . . . . . . . . . . . . . . . . Robot Hacks Applied . | . . . . . . . . . . . . . . . . . . Relay Couplers Released 4 | . . . . . . . . . 4 . . . . . . . . Machine Destruction 4 | . . . . . . . . . 4 . . . . . . . . Fabnet Peak Effective % . | . . . . . . . . . . . . . . . . . . Robots Rewired 6 | . . . . . . . . . 6 . . . . . . . . Allies Hacked . | . . . . . . . . . . . . . . . . . . Hacks Repelled . | . . . . . . . . . . . . . . . . . . Allies | -11 -10 -10 -9 -9 -9 -8 -8 -7 -7 -7 -7 -7 -7 -6 -6 -6 -6 -------- Run | Yrd Mat Min Mat Min Exi Min Mat Fac Gar Fac Low Low Dat Pro Fac Was Fac Total Allies 11 | . . 3 . 1 . . . . 6 . . . . 1 . . . Largest Group 6 | . . 3 . 1 1 . . . 6 . . . . 1 1 1 . Highest-Rated Group 96 | . . 40 . 31 31 . . . 84 . . . . 96 96 96 . Highest-Rated Ally 96 | . . 16 . 31 31 . . . 16 . . . . 96 96 96 . Initial Warlord ECA Mod 5 | . . . . . . . . . . 5 5 5 5 4 4 4 4 Total Orders . | . . . . . . . . . . . . . . . . . . Ally Attacks 106 | . . 30 . 5 . . . . 59 . . . . 3 . 9 . Total Damage 1271 | . . 281 . 42 . . . . 615 . . . . 43 . 290 . Kills 17 | . . 4 . 2 . . . . 9 . . . . 1 . 1 . Allies Corrupted . | . . . . . . . . . . . . . . . . . . Allies Melted . | . . . . . . . . . . . . . . . . . . Intel | -11 -10 -10 -9 -9 -9 -8 -8 -7 -7 -7 -7 -7 -7 -6 -6 -6 -6 ------- Run | Yrd Mat Min Mat Min Exi Min Mat Fac Gar Fac Low Low Dat Pro Fac Was Fac Active Infowar (turns) 3071 | 53 1155 948 626 . . . . . . . . . . . 162 127 . Structural 19 | . . . 19 . . . . . . . . . . . . . . Seismic 2782 | 53 1155 948 626 . . . . . . . . . . . . . . Cloaking 289 | . . . . . . . . . . . . . . . 162 127 . Robot Analysis Total 5 | . . 2 1 . . . . 2 . . . . . . . . . Derelict Logs Recovered 6 | . . 1 . 2 . . . . . . 2 . . 1 . . . Drone Launches . | . . . . . . . . . . . . . . . . . . Drone Recoveries . | . . . . . . . . . . . . . . . . . . Exploration | -11 -10 -10 -9 -9 -9 -8 -8 -7 -7 -7 -7 -7 -7 -6 -6 -6 -6 ------------- Run | Yrd Mat Min Mat Min Exi Min Mat Fac Gar Fac Low Low Dat Pro Fac Was Fac Turns Passed 30108 | 126 1155 971 2072 2176 515 716 2937 3378 2333 1025 3412 3307 288 4454 413 352 478 Spaces Moved 8951 | 43 419 578 654 868 214 255 851 1151 848 361 1199 535 85 479 50 113 248 Core 801 | 10 . . . . . . . . . . . 44 . 478 50 86 133 Treads 7636 | 33 419 578 654 868 214 255 851 1151 848 361 1199 179 . . . . 26 Legs 445 | . . . . . . . . . . . . 312 85 1 . 27 20 Wheels 69 | . . . . . . . . . . . . . . . . . 69 Hover . | . . . . . . . . . . . . . . . . . . Flight . | . . . . . . . . . . . . . . . . . . Fastest Speed 50 | 50 160 160 160 240 240 240 240 246 245 246 243 320 340 340 750 50 50 Average Speed 291 | 134 160 160 226 240 240 240 242 249 245 246 256 602 340 897 835 222 100 Slowest Speed 1800 | 160 160 160 240 240 240 240 250 250 246 246 320 1800 340 1400 1000 1000 300 Overloaded Moves . | . . . . . . . . . . . . . . . . . . Propulsion Burnouts . | . . . . . . . . . . . . . . . . . . Robots Hopped . | . . . . . . . . . . . . . . . . . . Potential Cave-ins . | . . . . . . . . . . . . . . . . . . Cave-ins Triggered . | . . . . . . . . . . . . . . . . . . Exploration Rate (%) 56 | 4 65 92 79 99 61 56 58 26 71 11 95 82 70 71 3 73 9 Regions Visited 17 Branch Regions 8 Pre-discovered Areas 4 | . . . 1 . . . . . . . 2 . 1 . . . . Known Exits Taken 5 | . . . 1 . . 1 1 1 . 1 . . . . . . . Unknown Exits Taken 9 | 1 1 1 . 1 1 . . . . . 1 1 1 1 . . . Scrap Searched 17 | . . 1 . 2 . 1 . . . . 3 8 . 2 . . . Spaces Dug 11 | . . . . . . . . . . . 11 . . . . . . Terrain Destroyed 204 | . . . 4 . . . . . . . 30 . . 100 . 64 6 Melee 11 | . . . . . . . . . . . 11 . . . . . . Projectile 16 | . . . . . . . . . . . 2 . . 6 . 2 6 AOE 176 | . . . 4 . . . . . . . 17 . . 93 . 62 . Terrain Rammed . | . . . . . . . . . . . . . . . . . . Walls Destroyed . | . . . . . . . . . . . . . . . . . . Machines Disabled . | . . . . . . . . . . . . . . . . . . Actions | -11 -10 -10 -9 -9 -9 -8 -8 -7 -7 -7 -7 -7 -7 -6 -6 -6 -6 --------- Run | Yrd Mat Min Mat Min Exi Min Mat Fac Gar Fac Low Low Dat Pro Fac Was Fac Total 11895 | 93 747 605 1122 943 217 304 1545 1622 995 469 1363 587 86 560 55 173 409 Wait 1828 | 24 211 8 339 56 . 16 520 410 13 83 34 19 . . . . 95 Move 8934 | 42 418 577 653 867 213 254 850 1150 846 360 1198 534 84 478 50 112 248 Hop . | . . . . . . . . . . . . . . . . . . Pick Up 132 | 10 15 6 24 3 1 . 23 8 3 2 12 8 . 5 3 6 3 Fast Attach 32 | . 1 . 1 . . . 7 6 1 1 . . . . . 5 10 Attach 91 | 7 3 2 8 3 . 3 11 4 3 2 17 4 1 11 2 8 2 Detach 7 | . . . . . . . 1 . . . 3 . 1 2 . . . Swap 37 | . 4 . 11 1 1 . 7 4 . . 3 2 . 3 . . 1 Drop 80 | . 6 1 16 1 2 . 22 15 . 1 7 2 . . . 5 2 Fire 637 | 10 89 11 70 11 . 31 85 23 62 18 69 18 . 61 . 32 47 Melee 37 | . . . . . . . 18 . . . 19 . . . . . . Ram 5 | . . . . . . . . . . . . . . . . 4 1 Kick . | . . . . . . . . . . . . . . . . . . Crush 1 | . . . . . . . . 1 . . . . . . . . . Escape Stasis 18 | . . . . . . . . . 16 2 . . . . . . . Rewire 52 | . . . . . . . . . 51 . 1 . . . . . . Trap 4 | . . . . 1 . . 1 1 . . . . . . . 1 . Miscellaneous . | . . . . . . . . . . . . . . . . . . Route ------- -11/Scrapyard -10/Materials (discovered 3 exits: *Mat / *Min x2) -10/Mines (discovered 3 exits: *Mat x2 / [*Sub]) -9/Materials (discovered 4 exits: *Mat x2 / *Min x2) -9/Mines (discovered 3 exits: *Mat x2 / *Exi) -9/Exiles -8/Mines -8/Materials -7/Factory (discovered 5 exits: [*Fac x2] / *Low x2 / Gar) -7/Garrison (discovered 2 exits: *Fac x2) -7/Factory -7/Lower Caves -7/Lower Caves (discovered 2 exits: [*Fac] / *Dat) -7/Data Miner -6/Proximity Caves -6/Factory -6/Waste -6/Factory History --------- Turn | Location | Event 23 | -11/Scrapyard | Discovered new exit (range 14) 127 | -11/Scrapyard | Entered Materials 307 | -10/Materials | Build established: Mutant 419 | -10/Materials | Core integrity fell below 50% 453 | -10/Materials | Discovered new exit (range 15) 1034 | -10/Materials | Discovered new exit (range 14) 1043 | -10/Materials | Discovered new exit (range 16) 1085 | -10/Materials | Core integrity fell below 20% 1282 | -10/Materials | Entered Mines 1303 | -10/Mines | Assisted by bots powering up and referring to "LRC-V3" 1309 | -10/Mines | Met a Derelict bent on vengeance 1418 | -10/Mines | Assembled infested the area 1510 | -10/Mines | Found a damaged Exp. Sensor Array with a note attached 1513 | -10/Mines | Found Prototype Device 1759 | -10/Mines | Found DCF Scrap (12 items) 1839 | -10/Mines | Learned 8 Materials zone layouts 1903 | -10/Mines | Discovered new exit (range 5) 1923 | -10/Mines | Discovered new exit (range 10) 2144 | -10/Mines | Discovered new exit (range 6) 2253 | -10/Mines | Entered Materials 2253 | -9/Materials | Evolved 2 slots: Utility x2 2254 | -9/Materials | Identified exit to Mines 2254 | -9/Materials | Identified exit to Materials 2554 | -9/Materials | Build established: Scavenger-Mutant 3194 | -9/Materials | Build established: Mutant 3716 | -9/Materials | Discovered exit to Materials (range 16) 3740 | -9/Materials | Central database locked down 4325 | -9/Materials | Entered Mines 4611 | -9/Mines | Learned location of 1 exit from Materials 4755 | -9/Mines | Discovered exit to Materials (range 11) 4930 | -9/Mines | Discovered exit to Materials (range 6) 4954 | -9/Mines | Deemed a non-threat by the Exiles lab entrance 4954 | -9/Mines | Discovered new exit (range 5) 5200 | -9/Mines | Escorted by a lone wolf Derelict 5403 | -9/Mines | Found a hidden stash of uninstalled traps 5919 | -9/Mines | Build established: Scavenger-Mutant 6501 | -9/Mines | Entered Exiles 6501 | -9/Exiles | Accompanied by 1 ally 6561 | -9/Exiles | Met 8R-AWN 6602 | -9/Exiles | Met EX-HEX 6674 | -9/Exiles | Met EX-BIN 6708 | -9/Exiles | Aligned with FarCom system 6710 | -9/Exiles | Given EX-Vault access code 6770 | -9/Exiles | Opened EX-Vault 6788 | -9/Exiles | Found Skeleton Box 6840 | -9/Exiles | Warned to stay clear of 0b10 Research branches 6900 | -9/Exiles | Met EX-DEC 6984 | -9/Exiles | Discovered new exit (range 14) 7016 | -9/Exiles | Left Exiles lab with Skeleton Box 7016 | -9/Exiles | Entered Mines 7525 | -8/Mines | Core integrity fell below 50% 7668 | -8/Mines | Discovered exit to Materials (range 8) 7732 | -8/Mines | Entered Materials 7732 | -8/Materials | Evolved 2 slots: Propulsion x1, Utility x1 7733 | -8/Materials | Identified exit to Factory 8020 | -8/Materials | Build established: Mutant 10421 | -8/Materials | Core integrity fell below 50% 10669 | -8/Materials | Entered Factory 10669 | -7/Factory | Evolved 2 slots: Utility x1, Weapon x1 10989 | -7/Factory | Build established: Tank 11619 | -7/Factory | Discovered new exit (range 15) 11719 | -7/Factory | Identified exit to Lower Caves 13097 | -7/Factory | Discovered new exit (range 8) 13770 | -7/Factory | Build established: Skirmisher 14045 | -7/Factory | Identified exit to Garrison 14047 | -7/Factory | Entered Garrison 14229 | -7/Garrison | Triggered checkpoint 14449 | -7/Garrison | Triggered checkpoint 14501 | -7/Garrison | Triggered checkpoint 14654 | -7/Garrison | Discovered new exit (range 10) 14731 | -7/Garrison | Triggered checkpoint 14917 | -7/Garrison | Triggered checkpoint 15335 | -7/Garrison | Garrison Relay disabled 15425 | -7/Garrison | Triggered checkpoint 15542 | -7/Garrison | Build established: Commander-Tank 15639 | -7/Garrison | Triggered checkpoint 15704 | -7/Garrison | Discovered new exit (range 15) 15825 | -7/Garrison | Lost 4 allies 16122 | -7/Garrison | Attempted to access garrison exit controls, blocked by remote lockdown 16150 | -7/Garrison | Build established: Skirmisher 16380 | -7/Garrison | Entered Factory 16684 | -7/Factory | Build established: Tank 17158 | -7/Factory | Discovered exit to Lower Caves (range 6) 17354 | -7/Factory | Cargo convoy interrupted 17405 | -7/Factory | Entered Lower Caves 17441 | -7/Lower Caves | Learned Factory stockpile data 17455 | -7/Lower Caves | Met a Warlord Commander 17456 | -7/Lower Caves | Learned location of Warlord (-5) 17457 | -7/Lower Caves | Warlord Commander delivered Encrypted Comm Array 17465 | -7/Lower Caves | Found Encrypted Comm Array 17762 | -7/Lower Caves | Acquired the password to a Derelict Tinkerer's latest research 18189 | -7/Lower Caves | Build established: Mutant 18837 | -7/Lower Caves | Attracted the attention of an 0b10 base 18896 | -7/Lower Caves | Destroyed 12 combat bots 18908 | -7/Lower Caves | Caught by Unaware searching for contraband prototypes 18941 | -7/Lower Caves | Learned location of Extension (-5) 18941 | -7/Lower Caves | Learned Research stockpile data 18941 | -7/Lower Caves | Learned Armory stockpile data 18941 | -7/Lower Caves | Learned Research terminal intel 19006 | -7/Lower Caves | Learned location of 1 exit from Factory 19141 | -7/Lower Caves | Build established: Tank 19185 | -7/Lower Caves | Spotted B-75 Beast 19596 | -7/Lower Caves | Attracted the attention of an 0b10 checkpoint 20202 | -7/Lower Caves | Destroyed B-75 Beast 20231 | -7/Lower Caves | Lost 3 parts (1n2u) 20526 | -7/Lower Caves | Discovered new exit (range 11) 20817 | -7/Lower Caves | Entered another Lower Caves area 20834 | -7/Lower Caves | Discovered new exit (range 12) 21407 | -7/Lower Caves | Spotted B-75 Beast 21465 | -7/Lower Caves | Destroyed B-75 Beast 21467 | -7/Lower Caves | Lost 3 parts (2n1w) 23117 | -7/Lower Caves | Encountered a Warlord checkpoint 23988 | -7/Lower Caves | Discovered new exit (range 5) 24124 | -7/Lower Caves | Entered Data Miner 24124 | -7/Data Miner | Discovered new exit (range 6) 24189 | -7/Data Miner | Met Data Miner 24264 | -7/Data Miner | Learned location of Section 7 (-3) 24264 | -7/Data Miner | Acquired the access code to Warlord's prototype stash 24320 | -7/Data Miner | Received God Mode back door access code from Data Miner 24412 | -7/Data Miner | Entered Proximity Caves 24414 | -6/Proximity Caves | Ambushed by research squad 24473 | -6/Proximity Caves | Lost 6 parts (2n2u2w) 24513 | -6/Proximity Caves | Spotter reported a threat 24587 | -6/Proximity Caves | Spotter reported a threat 25026 | -6/Proximity Caves | Core integrity fell below 50% 25031 | -6/Proximity Caves | Spotter reported a threat 25084 | -6/Proximity Caves | Spotter reported a threat 25086 | -6/Proximity Caves | Lost 5 parts (1p1u3w) 25329 | -6/Proximity Caves | Spotter reported a threat 25330 | -6/Proximity Caves | Build established: Mutant 25475 | -6/Proximity Caves | Spotter reported a threat 25528 | -6/Proximity Caves | Spotter reported a threat 25602 | -6/Proximity Caves | Spotter reported a threat 25655 | -6/Proximity Caves | Spotter reported a threat 25965 | -6/Proximity Caves | Spotter reported a threat 26018 | -6/Proximity Caves | Spotter reported a threat 26072 | -6/Proximity Caves | Spotter reported a threat 26142 | -6/Proximity Caves | Spotter reported a threat 26248 | -6/Proximity Caves | Spotter reported a threat 26327 | -6/Proximity Caves | Spotter reported a threat 26548 | -6/Proximity Caves | Spotter reported a threat 26621 | -6/Proximity Caves | Escorted by Enhanced Grunt 26657 | -6/Proximity Caves | Lost 4 parts (1p1u2w) 27008 | -6/Proximity Caves | Build established: Derelict-Mutant 27301 | -6/Proximity Caves | Learned Factory terminal intel 27663 | -6/Proximity Caves | Spotter reported a threat 28151 | -6/Proximity Caves | Build established: Mutant 28648 | -6/Proximity Caves | Discovered new exit (range 6) 28866 | -6/Proximity Caves | Entered Factory 28866 | -6/Factory | Accompanied by 1 ally 28866 | -6/Factory | Evolved 2 slots: Power x1, Utility x1 28867 | -6/Factory | Identified exit to Factory 28869 | -6/Factory | Loaded intel: 26 terminal locations 29279 | -6/Factory | Sucked down chute 29279 | -6/Factory | Entered Waste 29294 | -6/Waste | EMP discharged 29299 | -6/Waste | 1 allies followed down the chute 29369 | -6/Waste | Spotted C-40 Crusher 29378 | -6/Waste | Allies destroyed C-40 Crusher 29394 | -6/Waste | EMP discharged 29394 | -6/Waste | System corruption reached 10% 29404 | -6/Waste | Found Damper Plating 29409 | -6/Waste | Spotted C-40 Crusher 29420 | -6/Waste | Spotted C-40 Crusher 29420 | -6/Waste | Crushed by Compactor (0 parts destroyed, 1 dropped) 29420 | -6/Waste | Destroyed C-40 Crusher 29430 | -6/Waste | Spotted C-40 Crusher 29442 | -6/Waste | Crushed by Compactor (1 part destroyed) 29445 | -6/Waste | Crushed by Compactor (1 part destroyed) 29451 | -6/Waste | Crushed by Compactor (0 parts destroyed, 1 dropped) 29462 | -6/Waste | Destroyed C-40 Crusher 29474 | -6/Waste | Crushed by Compactor (1 part destroyed) 29478 | -6/Waste | Destroyed C-40 Crusher 29494 | -6/Waste | EMP discharged 29505 | -6/Waste | Lost 3 parts (1p2w) 29548 | -6/Waste | Spotted C-40 Crusher 29565 | -6/Waste | Crushed by Compactor (0 parts destroyed, 1 dropped) 29571 | -6/Waste | Crushed by Compactor (1 part destroyed, 2 dropped) 29574 | -6/Waste | Crushed by Compactor (1 part destroyed) 29577 | -6/Waste | Crushed by Compactor (1 part destroyed, 1 dropped) 29592 | -6/Waste | Spotted C-40 Crusher 29594 | -6/Waste | EMP discharged 29602 | -6/Waste | Destroyed C-40 Crusher 29604 | -6/Waste | Discovered new exit (range 13) 29608 | -6/Waste | Lost 4 parts (1n2u1w) 29613 | -6/Waste | System corruption reached 30% 29631 | -6/Waste | Entered Factory 29738 | -6/Factory | Core integrity fell below 50% 29786 | -6/Factory | Spotted B-75 Beast 29800 | -6/Factory | Allied Derelicts emerged from ambush trap array 29876 | -6/Factory | Core integrity fell below 20% 29895 | -6/Factory | Lost 3 allies 29979 | -6/Factory | Lost 3 parts (2n1w) 30030 | -6/Factory | Incoming investigation squad redirected 30109 | -6/Factory | Destroyed by G-50 Soldier with Heavy Laser Last Messages --------------- Welding Torch (90%) Imp. Heat Sink (75%) 30004_ ALERT: Suspicious activity at Recycling Unit F006. Dispatching Investigation squad. 30006_ Recycling Unit disabled. 30006_ K-01 Serf collects debris. 30014_ System corrupted: Heat flow error (+192). 30014_ K-01 Serf cleans the Fusion Modulator. 30030_ ALERT: Higher priority target reported, redirecting investigation. 30031_ K-01 Serf cleans the Fusion Modulator. 30037_ System corrupted: Component data lost. 30040_ K-01 Serf cleans the Fusion Modulator. 30053_ System corrupted: Matter fused (-9). 30070_ System corrupted: Component data lost. 30086_ T8KKLNY5:M7PJ= FPI%BYFV AQE2V>M 30092_ Connecting with Fabricator... >>Trojan(Liberate) Trojan loaded successfully. Testing... Ready to liberate! Map ----- +----------------------------------------------------+ | #??????????????????????????????????????????? | | #??????????????????????????????????????????? | | #??????????????????????????????????????????? | | #??????????????????????????????????????????? | | #??????????????????????????????????????????? | | #??????????????????????????????????????????? | | #??????????????????????????????????????????? | | #??????????????????????????????????????????? | | #??????????????????????????????????????????? | | ????????????????????????????????????????????? | | ??????????????????????????????????????????????? | | /###?????????????????????????????????????????????? | | #???##############????????????????????????????? | | ##### """ #????????????????????????????? | | + " " #????????????????????????????? | | ##### " " # ???????????????????????????? | | #???# # ???????????????????????????? | | #???# """ """ # ???????????????????????????? | | #???# """ """ # ???????????????????????????? | | #???# """ """ # #??????????????????????????? | | #???# # #??????????????????????????? | | #???# """ """ # #?##############???????????? | | #???# """ """ # #?# ! #???????????? | | #???# """ """ # #?# ????????????? | | #???# # #?# " " " " ???????????????? | | ###########+###### ###@" " " " ???????????????? | | % g " " " " ???????????????? | | ; " " " " ???????????????? | | % + " " " " ???????????????? | | # " " " "????????????????? | | % # " " " "????????????????? | | # " " " "????????????????? | | # " " " ?????????????????? | | %%[[ =! %"" "" # ?????????????????? | | ![ =! ""F"" #########????????????????? | | [%% % % =u """ #????????????????????????? | | % #????????????????????????? | | #????????????????????????? | | ######## ## #????????????????????????? | | ] # ## #????????????????????????? | | ##### """ %"" ????????????????????????? | | #???# """ """ ???????????????????????? | | #???# ??" ""? ????????????????????????? | | #???#? ??? ??? ????????????????????????? | | """" #?????????? ??? ???????????????????????? | | """" #?????????????????????????????????????????? | | ??"" #?????????????????????????????????????????? | | ???? #?????????????????????????????????????????? | | ????####?????????????????????????????????????????? | | ?????????????????????????????????????????????????? | +----------------------------------------------------+ Best States ------------- Heat Dissipation 61 Energy Generation 19 Energy Capacity 315 Matter Stores 331 Matter Capacity 500 Sight Range 16 Terrain Scan Density 210 Cloak Strength 2 EM Shielding 4 Armor Coverage 1600 Resistance: KI 30 Resistance: TH 20 Resistance: EM 90 Propulsion Shielding 66 Melee Speed Boost 20 Evasion (%) 50 Targeting Accuracy 6 Recoil Reduction 3 Item Schematics ----------------- Combat Drone Bay | -7/Data Miner | Free Lgt. Regenerative Plating | -7/Data Miner | Free Railgun | -7/Data Miner | Free Adv. Salvage Targeting Computer | -7/Data Miner | Free Imp. Arc Projector | -7/Data Miner | Free Adv. Trap Extractor | -7/Data Miner | Free Antigrav System | -7/Data Miner | Free Imp. Lightning Gun | -7/Data Miner | Free Exp. Targeting Computer | -7/Data Miner | Free Cld. Aerolev Unit | -7/Data Miner | Free Robot Schematics ------------------ M-14 Sweeper | -7/Data Miner | Free G-47 Trooper | -7/Data Miner | Free L-41 Fighter | -7/Data Miner | Free Y-54 Guardian | -7/Data Miner | Free Fabricated ------------ Nothing Repaired ---------- Nothing Studied --------- Minigun | -8/Materials | Hacked Alien Tech Used ----------------- None Achievements -------------- A Problem For Future Me Bumper Bots I Like You, Cogmind Look Less Dangerous Next Time Sixth Sense That Tickles Challenges ------------ None Game ------ Seed IonNodeNanoactuators Manual? 0 Play Time 02:35:55 Cumulative 101.1 hours Start 2026.07.03 @ 17:58:40 End 2026.07.03 @ 21:47:38 Sessions 1 Manual Loads 0 Difficulty Rogue Special Mode None Game No. 109 Rogue 90 Adventurer 0 Explorer 19 Win Type - Total 1 Types 1/0/0/0/0/0/0/0/0/0 Lore% 57 Gallery% 48 Achievement% 45 Wizard Run 0 Options --------- Layout 0 ASCII 0 Keyboard 0 Movement Mouse Keybinds 0 Fullscreen 2 Font 18/SmallcapsGlow Map View 76x50 Zoom Use 0% Tactical HUD 1 Map Filters NONE Filters NONE Steam SD RUN: 7f312579-4139-44a6-8a4d-fc80eda254e8